bitfinex/quotes_SOLUSD_20240612
["timestamp","ask_amount","ask_price","bid_price","bid_amount"]
[1718222237353,115.3408,152.68,152.54,2.4254]
[1718222237574,115.3408,152.68,152.54,2.4255]
[1718222237575,19.71,152.67,152.54,2.4255]
[1718222237877,119.71,152.67,152.53,2.4256]
[1718222238191,15.3408,152.68,152.51,9.704]
[1718222238351,100.0,152.71,152.58,2.4248]
[1718222238551,100.0,152.71,152.53,32.3228]
[1718222238552,100.0,152.66,152.53,15.343]
[1718222238761,100.0,152.68,152.53,15.343]
[1718222239172,100.0,152.7,152.55,4.8508]
[1718222239385,100.0,152.7,152.57,2.425]
[1718222239867,100.0,152.68,152.56,2.4252]
[1718222240072,100.0,152.68,152.54,2.4254]
[1718222240266,100.0,152.68,152.55,2.4254]
[1718222240476,100.0,152.67,152.53,15.343]
[1718222240776,200.0,152.71,152.53,15.343]
[1718222241078,100.0,152.7,152.53,15.343]
[1718222241276,100.0,152.72,152.54,46.46]
[1718222241482,100.0,152.72,152.55,6.3761]
[1718222241673,100.0,152.72,152.63,16.1047]
[1718222241879,100.0,152.72,152.63,18.5288]
[1718222242058,119.71,152.72,152.63,16.1047]
[1718222243283,100.0,152.76,152.64,8.922]
[1718222243484,100.0,152.78,152.67,2.4234]
[1718222243869,100.0,152.78,152.64,6.4981]
[1718222244073,19.71,152.81,152.68,2.4233]
[1718222244271,119.71,152.8,152.65,4.8474]
[1718222244466,119.71,152.8,152.64,23.4656]
[1718222244467,100.0,152.78,152.64,6.4981]
[1718222244666,100.0,152.76,152.64,6.4981]
[1718222244891,19.71,152.78,152.64,6.4981]
[1718222244892,100.0,152.74,152.64,6.4981]
[1718222245187,100.0,152.78,152.64,6.4981]
[1718222245768,0.17,152.77,152.64,6.4981]
[1718222245982,0.51,152.77,152.65,2.4238]
[1718222246189,0.34,152.77,152.64,6.4981]
[1718222246390,100.0,152.78,152.64,6.4981]
[1718222246568,100.0,152.78,152.65,2.4236]
[1718222246772,116.1047,152.81,152.65,4.8476]
[1718222247063,100.0,152.79,152.64,6.4981]
[1718222247469,100.0,152.76,152.64,6.4981]
[1718222247670,100.0,152.76,152.64,8.9219]
[1718222247871,100.0,152.76,152.64,6.4981]
[1718222248094,0.17,152.73,152.64,6.4981]
[1718222248285,0.17,152.75,152.64,8.922]
[1718222248486,0.17,152.77,152.64,6.4981]
[1718222248693,100.0,152.8,152.68,2.4232]
[1718222248991,16.1047,152.81,152.67,7.2704]
[1718222249193,16.1047,152.81,152.63,16.1047]
[1718222249194,16.1047,152.81,152.71,15.8424]
[1718222249499,0.04084376,152.88,152.78,2.4216]
[1718222249672,100.04084376,152.88,152.72,65.17]
[1718222249871,100.0,152.84,152.72,20.0]
[1718222250112,0.04084376,152.88,152.74,4.8446]
[1718222250412,100.0,152.89,152.72,9.6907]
[1718222250413,100.0,152.9,152.77,2.4219]
[1718222250582,100.0,152.9,152.78,2.4217]
[1718222250782,100.0,152.9,152.75,24.8442]
[1718222251018,100.0,152.93,152.81,15.6699]
[1718222251317,100.0,152.95,152.84,2.4207]
[1718222251600,100.0,152.95,152.81,15.6699]
[1718222251601,100.0,152.95,152.83,2.4209]
[1718222251808,109.25600683,152.99,152.82,65.0]
[1718222252177,100.0,152.99,152.87,2.4203]
[1718222252398,100.0,152.97,152.82,65.0]
[1718222252589,115.6699,153.0,152.83,0.51]
[1718222252778,100.0,153.0,152.85,4.8411]
[1718222252998,100.0,153.0,152.86,45.0]
[1718222253195,100.0,152.97,152.81,42.1299]
[1718222253374,100.0,152.99,152.82,65.0]
[1718222253578,100.0,152.97,152.85,2.4205]
[1718222253794,100.0,152.95,152.82,65.0]
[1718222253985,100.0,152.97,152.81,15.6699]
[1718222254311,100.0,153.01,152.87,2.4202]
[1718222254611,100.0,152.99,152.85,2.4206]
[1718222254774,100.0,152.99,152.84,45.0]
[1718222254980,100.0,152.99,152.85,20.0]
[1718222255213,100.0,153.01,152.89,2.4199]
[1718222255508,100.0,153.03,152.91,6.4795]
[1718222255710,100.0,153.03,152.93,16.4957]
[1718222256214,109.2810419,153.08,152.93,16.4957]
[1718222256414,100.0,153.08,152.96,2.4188]
[1718222256709,109.2810419,153.09,152.94,49.8382]
[1718222256880,100.0,153.09,152.97,2.4186]
[1718222257090,100.0,153.08,152.95,20.0]
[1718222257295,200.0,153.09,152.96,2.4188]
[1718222257496,100.0,153.06,152.93,16.4957]
[1718222257714,100.0,153.04,152.93,16.4957]
[1718222258011,100.0,153.02,152.93,16.4957]
[1718222258385,100.0,153.04,152.93,16.4957]
[1718222258586,0.17,152.98,152.93,16.4957]
[1718222258813,0.17,152.97,152.93,16.4957]
[1718222258996,0.68,152.97,152.93,16.4957]
[1718222259316,0.17,153.02,152.93,16.4957]
[1718222259500,0.17,153.02,152.97,2.4187]
[1718222259701,100.0,153.05,152.95,2.419]
[1718222259898,100.0,153.11,152.99,2.4183]
[1718222260101,100.0,153.11,152.96,4.8377]
[1718222260405,100.0,153.12,152.96,24.8377]
[1718222260610,100.0,153.08,152.96,22.4188]
[1718222260809,100.0,153.08,152.93,21.3342]
[1718222260810,100.0,153.07,152.94,20.0]
[1718222261013,19.71,153.12,152.93,16.4957]
[1718222261014,100.0,153.09,152.96,2.4189]
[1718222261495,0.17,153.08,152.96,2.4189]
[1718222261811,0.17,153.05,152.93,16.4957]
[1718222262009,100.34,153.08,152.93,16.4957]
[1718222262010,100.0,153.04,152.93,16.4957]
[1718222262222,0.17,153.04,152.93,16.4957]
[1718222262401,100.0,153.11,152.98,2.4185]
[1718222262601,0.17,153.08,152.94,20.0]
[1718222262910,0.34,153.08,152.94,20.0]
[1718222263117,200.0,153.12,152.94,20.0]
[1718222263320,200.0,153.12,152.98,2.4184]
[1718222263516,100.0,153.1,152.94,20.0]
[1718222263717,100.0,153.08,152.95,45.0]
[1718222263904,100.0,153.08,152.95,47.4189]
[1718222264216,100.0,153.1,152.96,2.4189]
[1718222264403,0.17,153.09,152.93,16.4957]
[1718222264606,0.17,153.08,152.96,2.4189]
[1718222264828,200.0,153.12,152.94,20.0]
[1718222265004,100.0,153.08,152.94,20.0]
[1718222265326,32.64366007,153.16,152.94,2.4192]
[1718222265327,100.0,153.06,152.94,2.4192]
[1718222265527,100.0,153.08,152.94,2.4192]
[1718222265698,100.0,153.08,152.93,16.4957]
[1718222265699,100.0,153.08,152.95,2.419]
[1718222265903,19.71,153.12,152.93,16.4957]
[1718222265904,100.0,153.06,152.93,16.4957]
[1718222266104,119.71,153.12,152.93,16.4957]
[1718222266105,0.17,153.03,152.93,16.4957]
[1718222266308,0.17,153.01,152.93,16.4957]
[1718222266514,0.17,152.99,152.93,16.4957]
[1718222266721,0.51,152.99,152.93,16.4957]
[1718222267224,0.17,152.97,152.91,6.4795]
[1718222267527,0.34,152.97,152.91,6.4795]
[1718222267828,0.17,152.94,152.87,15.4397]
[1718222268000,0.34,152.94,152.87,15.4397]
[1718222268195,0.17,152.96,152.87,15.4397]
[1718222268622,0.17,152.99,152.87,15.4397]
[1718222268794,0.17,152.99,152.88,2.4201]
[1718222268795,0.68,152.99,152.88,2.4201]
[1718222269002,0.68,152.99,152.87,17.86]
[1718222269500,0.68,152.99,152.87,15.4397]
[1718222269501,120.39,152.99,152.87,15.4397]
[1718222269701,0.17,152.96,152.87,15.4397]
[1718222269921,0.68,152.96,152.87,15.4397]
[1718222270130,0.51,152.96,152.87,15.4397]
[1718222270302,100.0,153.03,152.88,4.8403]
[1718222270497,6.30864822,153.05,152.87,15.4397]
[1718222270498,0.17,153.02,152.87,15.4397]
[1718222270717,0.17,153.02,152.89,4.84]
[1718222270920,100.0,153.07,152.94,6.4064]
[1718222271208,100.0,153.09,152.94,6.4064]
[1718222271410,100.0,153.07,152.95,2.419]
[1718222271733,100.0,153.07,152.94,6.4064]
[1718222271901,119.71,153.09,152.94,6.4064]
[1718222272418,100.0,153.06,152.94,6.4064]
[1718222272632,100.0,153.07,152.95,2.419]
[1718222272828,119.71,153.07,152.94,8.8256]
[1718222273139,100.0,153.03,152.94,6.4064]
[1718222273616,0.34,153.02,152.94,6.4064]
[1718222274010,0.17,153.01,152.94,6.4064]
[1718222274399,0.51,153.01,152.94,6.4064]
[1718222274727,100.0,153.04,152.94,6.4064]
[1718222274930,119.71,153.02,152.94,6.4064]
[1718222275103,100.0,153.08,152.88,6.8141]
[1718222275104,100.0,152.99,152.88,6.8141]
[1718222275519,100.0,153.01,152.88,6.8141]
[1718222275725,119.71,153.01,152.88,6.8141]
[1718222275913,45.68,153.0,152.89,2.4199]
[1718222276115,0.68,153.0,152.88,9.2342]
[1718222276429,0.17,152.94,152.83,18.7324]
[1718222276629,0.51,152.94,152.83,18.7324]
[1718222276805,0.17,152.93,152.83,16.3116]
[1718222277006,0.17,152.92,152.83,16.3116]
[1718222277225,0.17,152.92,152.83,18.7325]
[1718222277534,0.17,152.92,152.83,16.3116]
[1718222277723,0.34,152.92,152.83,16.3116]
[1718222277907,0.34,152.92,152.83,18.7325]
[1718222278103,0.34,152.92,152.83,16.3116]
[1718222278305,0.17,152.92,152.83,16.3116]
[1718222278932,0.34,152.92,152.83,16.3116]
[1718222280539,0.17,152.9,152.83,16.3116]
[1718222281131,0.17,152.91,152.83,16.3116]
[1718222281320,100.0,152.93,152.83,16.3116]
[1718222281524,0.17,152.92,152.83,16.3116]
[1718222281832,45.68,152.92,152.83,16.3116]
[1718222282646,0.17,152.92,152.83,16.3116]
[1718222283151,0.17,152.92,152.83,18.7325]
[1718222283427,100.0,152.95,152.83,16.3116]
[1718222283647,109.2853376,152.99,152.83,16.3116]
[1718222283807,100.0,152.99,152.84,45.0]
[1718222284008,18.7325,153.0,152.85,0.17]
[1718222284223,109.28507929,153.01,152.86,4.8409]
[1718222284224,9.28507929,153.01,152.86,4.8409]
[1718222284434,9.28507929,153.02,152.9,2.4197]
[1718222284606,9.28507929,153.02,152.91,2.4196]
[1718222284806,100.0,153.03,152.9,20.0]
[1718222285002,109.2882327,153.05,152.9,20.0]
[1718222285230,109.2882327,153.05,152.91,15.5896]
[1718222285421,109.2882327,153.05,152.92,67.4195]
[1718222285624,100.0,153.03,152.92,20.0]
[1718222285832,100.0,153.03,152.91,15.5896]
[1718222285833,100.0,153.01,152.91,15.5896]
[1718222286010,9.2882327,153.05,152.91,15.5896]
[1718222286236,109.2882327,153.06,152.92,65.0]
[1718222286643,9.2882327,153.05,152.93,2.4193]
[1718222286854,109.2882327,153.06,152.93,2.4193]
[1718222287049,109.2882327,153.06,152.94,2.4191]
[1718222287363,128.9982327,153.06,152.93,6.4082]
[1718222287536,100.0,153.01,152.93,6.4082]
[1718222287932,28.9982327,153.03,152.93,6.4082]
[1718222287933,9.2882327,153.02,152.93,6.4082]
[1718222288256,9.2882327,153.03,152.93,6.4082]
[1718222288459,9.2882327,153.03,152.93,8.8274]
[1718222288757,9.2882327,153.04,152.93,6.4082]
[1718222289050,8.7882327,153.04,152.94,2.4192]
[1718222289253,8.7882327,153.04,152.95,2.419]
[1718222289556,8.7882327,153.04,152.94,45.0]
[1718222289557,8.7882327,153.04,152.94,47.4192]
[1718222289724,100.0,153.04,152.93,6.4082]
[1718222289928,100.0,152.98,152.89,6.5422]
[1718222290131,119.71,152.98,152.89,6.5422]
[1718222290358,100.0,153.0,152.89,6.5422]
[1718222290554,10.0,153.09,152.89,6.5422]
[1718222290555,0.34,152.97,152.89,6.5422]
[1718222290741,0.17,152.95,152.89,6.5422]
[1718222290950,0.34,152.95,152.89,6.5422]
[1718222291361,0.34,152.96,152.89,6.5422]
[1718222291538,0.34,152.95,152.89,6.5422]
[1718222291731,0.17,152.94,152.89,6.5422]
[1718222291945,0.17,152.93,152.89,6.5422]
[1718222292165,0.34,152.93,152.89,6.5422]
[1718222292733,0.17,152.91,152.89,6.5422]
[1718222293051,0.17,152.95,152.89,6.5422]
[1718222293225,0.68,152.95,152.89,6.5422]
[1718222293429,100.0,153.01,152.89,8.9622]
[1718222293832,9.27407036,152.97,152.89,8.9622]
[1718222294042,9.27407036,152.97,152.92,2.4195]
[1718222294248,9.27407036,152.99,152.89,6.5422]
[1718222294561,9.27407036,152.98,152.91,2.4196]
[1718222294747,100.0,153.07,152.9,65.0]
[1718222294748,9.27255003,152.99,152.9,65.0]
[1718222295055,9.27255003,152.99,152.91,2.4196]
[1718222295256,9.27255003,152.99,152.9,65.0]
[1718222295257,9.27255003,152.99,152.94,2.4192]
[1718222295561,9.27255003,152.99,152.91,2.4195]
[1718222295735,9.27255003,152.99,152.86,6.3637]
[1718222296057,9.27255003,152.97,152.86,6.3637]
[1718222296361,9.27255003,152.94,152.88,2.4201]
[1718222296656,9.27255003,152.94,152.86,6.3637]
[1718222296857,9.27255003,152.95,152.88,2.42]
[1718222297062,9.27255003,152.95,152.9,2.4198]
[1718222297239,9.27255003,152.96,152.9,2.4198]
[1718222297437,0.17,152.95,152.86,6.3637]
[1718222297631,9.44255003,152.96,152.87,2.4202]
[1718222297835,9.27255003,152.95,152.89,2.42]
[1718222298058,9.27255003,152.95,152.86,6.3637]
[1718222298059,9.27255003,152.95,152.87,20.0]
[1718222298265,9.27255003,152.95,152.88,2.4201]
[1718222298437,9.44255003,152.96,152.89,2.4199]
[1718222298738,9.27255003,152.96,152.87,20.0]
[1718222298939,9.27255003,152.95,152.87,20.0]
[1718222299139,109.27255003,152.96,152.86,6.3637]
[1718222299549,119.71,152.97,152.86,6.3637]
[1718222299550,9.27255003,152.94,152.86,6.3637]
[1718222299743,0.17,152.93,152.86,6.3637]
[1718222299959,9.27255003,152.94,152.86,6.3637]
[1718222300360,0.17,152.93,152.86,6.3637]
[1718222300653,0.68,152.93,152.86,6.3637]
[1718222301037,9.27255003,152.92,152.86,6.3637]
[1718222301253,0.68,152.91,152.86,6.3637]
[1718222301562,0.68,152.91,152.78,22.8332]
[1718222301739,9.95255003,152.91,152.82,2.421]
[1718222302058,9.95255003,152.91,152.83,2.4209]
[1718222302260,45.0,152.93,152.81,9.6846]
[1718222302261,9.27255003,152.92,152.81,9.6846]
[1718222302559,0.34,152.91,152.78,22.8332]
[1718222302771,9.27255003,152.96,152.88,2.42]
[1718222302949,9.27255003,152.96,152.82,0.17]
[1718222303260,100.0,153.02,152.84,0.17]
[1718222303261,9.27255003,152.97,152.84,0.17]
[1718222303438,9.27255003,152.98,152.9,2.4198]
[1718222303640,9.27255003,152.98,152.88,2.4201]
[1718222303844,9.27255003,153.0,152.87,65.0]
[1718222304063,9.27255003,153.0,152.89,2.4199]
[1718222304672,9.28345903,153.0,152.87,67.4203]
[1718222304972,9.28345903,153.0,152.87,67.4202]
[1718222305271,0.68,152.99,152.88,2.4201]
[1718222305462,0.68,152.99,152.87,65.0]
[1718222305770,0.17,152.97,152.87,20.0]
[1718222305959,0.17,152.97,152.86,15.8329]
[1718222306473,100.0,152.96,152.86,15.8329]
[1718222306767,0.68,152.95,152.86,15.8329]
[1718222306987,0.68,152.95,152.86,18.2533]
[1718222307144,9.28345903,152.99,152.86,15.8329]
[1718222307346,100.0,152.96,152.86,15.8329]
[1718222307572,0.17,152.93,152.8,16.0433]
[1718222307771,0.51,152.93,152.83,2.4209]
[1718222307945,0.17,152.92,152.83,2.4208]
[1718222308153,0.17,152.91,152.8,18.4646]
[1718222308345,0.17,152.91,152.8,16.0433]
[1718222308744,0.17,152.91,152.82,2.4211]
[1718222308947,0.51,152.92,152.84,2.4208]
[1718222309145,0.17,152.91,152.81,2.4212]
[1718222309372,0.17,152.91,152.8,16.0433]
[1718222309541,0.34,152.92,152.81,50.1825]
[1718222309747,0.17,152.91,152.81,45.0]
[1718222309974,9.28345903,152.95,152.82,20.34]
[1718222310170,126.46,153.04,152.82,20.34]
[1718222310171,9.28345903,152.98,152.89,2.4199]
[1718222310352,9.28345903,152.99,152.86,20.0]
[1718222310552,109.28345903,152.98,152.87,45.0]
[1718222310749,100.0,152.98,152.87,45.0]
[1718222310966,100.0,152.98,152.86,20.0]
[1718222311280,119.71,152.96,152.83,2.9216]
[1718222311486,45.68,152.95,152.83,47.9216]
[1718222311681,45.68,152.95,152.83,2.4208]
[1718222311856,45.68,152.95,152.83,20.0]
[1718222311857,0.17,152.93,152.83,20.0]
[1718222312270,9.28123547,152.95,152.82,45.0]
[1718222312462,9.28123547,152.95,152.84,2.4207]
[1718222312963,9.28123547,152.94,152.83,47.4209]
[1718222313160,9.28123547,152.94,152.83,45.0]
[1718222313464,0.34,152.93,152.84,2.4207]
[1718222313653,0.34,152.93,152.83,47.4209]
[1718222313863,9.28123547,152.95,152.83,45.0]
[1718222314080,9.28123547,152.95,152.84,0.34]
[1718222314377,9.28123547,152.96,152.84,0.17]
[1718222314678,9.28123547,152.97,152.86,2.4204]
[1718222314881,9.28123547,152.98,152.87,2.4203]
[1718222315054,9.28123547,152.98,152.92,2.4194]
[1718222315256,9.28123547,152.99,152.88,0.17]
[1718222315565,9.28123547,152.99,152.91,2.4196]
[1718222315760,9.28123547,153.01,152.9,67.4198]
[1718222316073,9.28123547,153.01,152.92,2.4194]
[1718222316281,143.1883,153.01,152.87,2.4203]
[1718222316485,143.1883,153.01,152.85,2.4205]
[1718222316486,243.1883,153.01,152.85,2.4205]
[1718222316790,9.28123547,152.98,152.84,7.2623]
[1718222316990,9.28123547,152.98,152.83,7.2629]
[1718222316991,9.28123547,152.98,152.85,2.9212]
[1718222317295,9.28123547,152.98,152.87,2.4203]
[1718222317585,100.0,152.97,152.86,45.0]
[1718222317895,0.17,152.94,152.85,2.9212]
[1718222318083,0.51,152.94,152.85,2.9212]
[1718222318270,0.17,152.92,152.85,2.9212]
[1718222318588,9.79123547,152.92,152.85,2.9212]
[1718222318792,0.17,152.9,152.85,2.9212]
[1718222318963,0.17,152.88,152.85,2.9212]
[1718222319166,0.17,152.86,152.85,2.9212]
[1718222319482,9.45123547,152.88,152.74,7.2671]
[1718222319666,9.28123547,152.89,152.82,2.421]
[1718222319859,9.28123547,152.89,152.84,2.4207]
[1718222320062,9.28123547,152.92,152.83,20.0]
[1718222320265,9.28123547,152.93,152.82,6.5873]
[1718222320590,9.28123547,152.95,152.83,45.34]
[1718222320889,9.28123547,152.95,152.84,2.4208]
[1718222320890,9.2814571,152.95,152.84,2.4208]
[1718222321464,9.2814571,152.96,152.85,2.4206]
[1718222321664,100.0,152.89,152.75,5.3452]
[1718222321864,100.0,152.89,152.75,2.9231]
[1718222322266,9.2814571,152.88,152.75,2.9231]
[1718222322685,0.17,152.87,152.75,5.3453]
[1718222322871,0.68,152.87,152.75,2.9231]
[1718222323186,0.17,152.85,152.75,2.9231]
[1718222323709,9.2814571,152.84,152.75,2.9231]
[1718222323918,0.68,152.83,152.72,6.5051]
[1718222324103,0.68,152.83,152.73,2.4224]
[1718222324104,0.17,152.83,152.73,2.4224]
[1718222324304,9.44247311,152.84,152.72,6.5051]
[1718222324610,0.17,152.82,152.72,6.5051]
[1718222324989,0.34,152.83,152.74,2.4223]
[1718222325188,9.27247311,152.86,152.81,2.4211]
[1718222325440,9.27247311,152.89,152.76,26.46]
[1718222325724,9.27247311,152.89,152.78,0.17]
[1718222325888,109.27247311,152.92,152.78,20.0]
[1718222326103,19.71,152.94,152.8,0.17]
[1718222326104,9.27247311,152.91,152.8,0.17]
[1718222326335,9.27247311,152.94,152.8,0.34]
[1718222326609,100.0,152.93,152.79,45.34]
[1718222327003,100.0,152.93,152.79,45.17]
[1718222327316,100.0,152.89,152.77,2.9227]
[1718222327505,0.51,152.88,152.75,20.0]
[1718222327700,0.17,152.86,152.75,20.0]
[1718222328008,0.17,152.84,152.74,6.3604]
[1718222328211,0.34,152.84,152.74,6.3604]
[1718222328383,100.34,152.84,152.74,6.3604]
[1718222328584,0.17,152.82,152.74,6.3604]
[1718222328816,0.17,152.82,152.64,31.3078]
[1718222328817,100.17,152.82,152.69,6.5276]
[1718222329114,0.17,152.76,152.64,6.5276]
[1718222329286,106.2687,152.78,152.64,6.5276]
[1718222329486,0.17,152.76,152.64,6.5276]
[1718222329685,0.17,152.72,152.55,18.09407388]
[1718222329897,0.34,152.72,152.57,2.4249]
[1718222330191,0.68,152.72,152.55,21.8215]
[1718222330396,0.68,152.72,152.55,48.2815]
[1718222330612,0.68,152.72,152.6,2.4246]
[1718222330821,0.68,152.72,152.59,2.4247]
[1718222331333,0.68,152.72,152.58,2.4249]
[1718222332191,0.17,152.7,152.56,2.9267]
[1718222332394,100.17,152.68,152.56,2.9267]
[1718222332606,0.17,152.66,152.56,2.9267]
[1718222332792,0.17,152.66,152.55,16.9708]
[1718222332793,0.34,152.66,152.55,16.9708]
[1718222333392,0.17,152.65,152.55,16.9708]
[1718222333589,0.17,152.66,152.55,16.9708]
[1718222333999,100.0,152.73,152.56,2.9267]
[1718222334196,100.0,152.74,152.6,2.4246]
[1718222334414,100.0,152.74,152.56,2.9267]
[1718222334415,100.0,152.71,152.56,2.9267]
[1718222334598,100.0,152.71,152.57,0.17]
[1718222334798,100.0,152.69,152.56,47.9267]
[1718222335025,100.0,152.72,152.56,47.9267]
[1718222335026,100.0,152.66,152.56,2.9267]
[1718222335335,0.17,152.63,152.47,5.23159488]
[1718222335532,0.68,152.64,152.49,2.4263]
[1718222335695,100.17,152.62,152.47,5.355]
[1718222335902,0.17,152.6,152.47,2.9285]
[1718222336095,0.34,152.6,152.49,2.4263]
[1718222336315,0.17,152.61,152.48,2.4265]
[1718222336520,0.68,152.62,152.48,2.4265]
[1718222336728,0.68,152.62,152.49,2.4263]
[1718222338015,0.68,152.62,152.48,2.4265]
[1718222338316,0.17,152.6,152.47,2.9285]
[1718222338703,0.34,152.6,152.47,2.9285]
[1718222338909,0.34,152.6,152.47,5.3551]
[1718222339105,0.17,152.58,152.47,5.3551]
[1718222339298,0.34,152.59,152.47,5.3551]
[1718222339498,145.0,152.65,152.48,0.17]
[1718222339699,105.24319101,152.71,152.53,4.8514]
[1718222339930,100.0,152.7,152.55,15.8468]
[1718222340246,100.0,152.7,152.56,45.0]
[1718222340535,5.24319101,152.71,152.56,45.0]
[1718222340536,100.0,152.67,152.56,45.0]
[1718222340901,46.17,152.72,152.55,15.8468]
[1718222340902,100.0,152.64,152.55,15.8468]
[1718222341138,26.46,152.72,152.44,5.19621736]
[1718222341139,100.0,152.62,152.49,22.9031]
[1718222341508,100.0,152.64,152.49,22.9031]
[1718222341898,0.34,152.63,152.49,22.9031]
[1718222342102,100.0,152.69,152.49,27.7558]
[1718222342327,112.76782749,152.7,152.57,2.425]
[1718222342500,107.04077164,152.71,152.53,0.17]
[1718222342501,100.0,152.71,152.53,0.17]
[1718222342698,213.26231007,152.73,152.58,2.4249]
[1718222342899,106.6054,152.73,152.59,21.8332]
[1718222343107,100.0,152.71,152.59,21.6632]
[1718222343433,100.0,152.69,152.59,21.6632]
[1718222343602,106.6054,152.73,152.59,21.6632]
[1718222343807,6.6054,152.73,152.6,45.0]
[1718222344403,105.20846885,152.75,152.6,45.0]
[1718222344404,100.0,152.75,152.6,45.0]
[1718222345205,100.0,152.73,152.6,45.0]
[1718222345527,100.0,152.71,152.6,45.0]
[1718222345832,100.0,152.71,152.49,16.9845]
[1718222345833,100.0,152.67,152.53,22.0947]
[1718222346041,0.17,152.7,152.55,2.4253]
[1718222346238,0.17,152.68,152.54,22.4255]
[1718222346425,0.68,152.68,152.54,22.4255]
[1718222346807,0.68,152.68,152.55,2.4254]
[1718222347029,0.68,152.68,152.54,20.0]
[1718222347212,0.17,152.66,152.54,20.0]
[1718222347413,0.17,152.64,152.5,2.9279]
[1718222347612,0.34,152.64,152.5,5.354]
[1718222347824,100.0,152.7,152.52,23.1124]
[1718222348036,0.17,152.7,152.54,4.851]
[1718222348235,105.24319101,152.73,152.58,2.4248]
[1718222348442,100.0,152.73,152.59,2.4247]
[1718222348647,222.31991355,152.75,152.59,0.17]
[1718222348820,110.11841007,152.75,152.59,0.17]
[1718222349022,7.2765,152.76,152.64,6.6746]
[1718222349219,7.2765,152.76,152.6,0.17]
[1718222349419,100.0,152.77,152.6,0.17]
[1718222349420,100.0,152.77,152.6,45.68]
[1718222349623,22.5052,152.78,152.6,45.68]
[1718222349916,100.0,152.77,152.61,2.9258]
[1718222350224,227.90250515,152.81,152.62,0.68]
[1718222350435,227.90250515,152.81,152.64,0.17]
[1718222350651,222.76170904,152.81,152.64,3.104]
[1718222350832,222.76170904,152.81,152.64,0.51]
[1718222351024,100.0,152.79,152.64,0.51]
[1718222351218,242.47170904,152.81,152.64,0.51]
[1718222351444,100.0,152.76,152.61,9.7599]
[1718222351743,100.0,152.76,152.62,45.0]
[1718222351935,119.71,152.76,152.62,45.0]
[1718222352138,26.46,152.8,152.62,45.0]
[1718222352139,126.46,152.8,152.62,45.0]
[1718222352331,100.0,152.78,152.63,0.34]
[1718222352531,0.17,152.76,152.61,9.7599]
[1718222352744,0.17,152.76,152.61,6.8341]
[1718222352745,0.17,152.73,152.61,6.8341]
[1718222353047,0.34,152.73,152.61,6.8341]
[1718222353648,107.04077164,152.77,152.61,6.8341]
[1718222353950,101.99061784,152.79,152.62,0.34]
[1718222354113,121.70061784,152.79,152.63,0.17]
[1718222354318,101.99061784,152.79,152.63,0.17]
[1718222354520,229.80248068,152.81,152.64,0.17]